fUST/lending_fUST_20240413
["ID","MTS","AMOUNT","RATE_DAILY","PERIOD"]
[322449488,1713015052173,-1128.53,0.00035764,7]
[322449489,1713015052182,-500.0,0.00035764,7]
[322449490,1713015052192,-2516.5,0.00035764,7]
[322449491,1713015052201,-33798.35,0.00035764,7]
[322449492,1713015052211,-500.0,0.00035764,7]
[322449493,1713015052221,-151.96993164,0.00035764,7]
[322449494,1713015052231,-500.0,0.00035764,7]
[322449495,1713015052240,-500.0,0.00035764,7]
[322449496,1713015052250,-2217.02,0.00035764,7]
[322449497,1713015052259,-500.0,0.00035764,7]
[322449498,1713015052268,-2535.45,0.00035764,7]
[322449499,1713015052278,-1396.73,0.00035764,7]
[322449500,1713015052287,-939.26,0.00035764,7]
[322449501,1713015052297,-508.79311456,0.00035764,7]
[322449502,1713015052307,-648.57,0.00035764,7]
[322449503,1713015052317,-706.34,0.00035764,7]
[322449504,1713015052327,-151.0,0.00035764,2]
[322449505,1713015052337,-1152.24,0.00035764,7]
[322449506,1713015052346,-500.0,0.00035764,7]
[322449507,1713015052357,-500.0,0.00035764,7]
[322449508,1713015052367,-500.0,0.00035764,7]
[322449509,1713015052377,-500.0,0.00035764,7]
[322449510,1713015052389,-500.0,0.00035764,7]
[322449511,1713015052400,-648.74,0.00035764,7]
[322449512,1713015052410,-506.47940517,0.00035764,7]
[322449513,1713015052419,-2250.58,0.00035764,7]
[322449514,1713015052430,-514.42647175,0.00035764,7]
[322449515,1713015052440,-1147.33,0.00035764,7]
[322449516,1713015052450,-6760.6,0.00035764,7]
[322449517,1713015052460,-2043.72,0.00035765,7]
[322449518,1713015052470,-151.0,0.00035765,2]
[322449519,1713015052479,-738.77,0.00035765,7]
[322449520,1713015052489,-190.001494,0.00035765,2]
[322449521,1713015052499,-190.001494,0.00035765,2]
[322449522,1713015052509,-151.0,0.00035765,2]
[322449523,1713015052518,-500.0,0.00035765,7]
[322449524,1713015052528,-500.0,0.00035765,7]
[322449525,1713015052537,-3317.61,0.00035765,7]
[322449526,1713015052547,-2363.91,0.00035765,7]
[322449527,1713015052558,-500.0,0.00035765,7]
[322449528,1713015052569,-508.33,0.00035765,7]
[322449529,1713015052579,-853.71,0.00035765,7]
[322449530,1713015052588,-500.0,0.00035765,7]
[322449531,1713015052598,-151.0,0.00035765,2]
[322449532,1713015052608,-640.17,0.00035766,7]
[322449533,1713015052618,-1384.9,0.00035766,7]
[322449534,1713015052627,-150.0,0.00035844,2]
[322449535,1713015052638,-154.98450155,0.0003589,2]
[322449536,1713015052647,-20335.2507,0.00035904,30]
[322449537,1713015052657,-151.0,0.00035941,2]
[322449538,1713015052667,-190.001494,0.00035941,2]
[322449539,1713015052677,-190.001494,0.00035941,2]
[322449540,1713015052686,-151.0,0.00035941,2]
[322449541,1713015052696,-151.0,0.00035941,2]
[322449542,1713015052705,-484.472316,0.00035941,2]
[322449543,1713015052715,-246.08237931,0.00035941,2]
[322449544,1713015052850,385.20972518,0.00025999,2]
[322449545,1713015053498,-559.91195239,0.00035215,7]
[322449546,1713015053508,-500.0,0.00035491,7]
[322449547,1713015053525,-500.0,0.00035765,7]
[322449548,1713015053535,-238.38993669,0.00035941,2]
[322449549,1713015053544,-8866.39,0.00035941,7]
[322449550,1713015053554,-10043.70422718,0.00036,2]
[322449551,1713015053564,-365.56,0.00036,120]
[322449552,1713015053573,-151.0,0.00036,2]
[322449553,1713015053582,-987.58,0.00036037,7]
[322449554,1713015053591,-1583.55,0.00036037,2]
[322449555,1713015053600,-500.0,0.00036038,7]
[322449556,1713015053610,-523.5808142,0.00036038,7]
[322449557,1713015053619,-500.0,0.00036038,7]
[322449558,1713015053628,-500.0,0.00036038,7]
[322449559,1713015053637,-834.75,0.00036038,7]
[322449560,1713015053647,-500.0,0.00036038,7]
[322449561,1713015053657,-500.0,0.00036038,7]
[322449562,1713015053666,-500.0,0.00036038,7]
[322449563,1713015053675,-500.0,0.00036038,7]
[322449564,1713015053684,-580.63,0.00036038,7]
[322449565,1713015053693,-1357.57,0.00036038,7]
[322449566,1713015053703,-464.2043644,0.00036038,7]
[322449567,1713015053712,-1014.92,0.00036038,7]
[322449568,1713015053721,-305.35918201,0.00036038,7]
[322449569,1713015053734,-175.62185263,0.00036038,7]
[322449570,1713015053844,-500.0,0.00034393,7]
[322449571,1713015053854,-500.0,0.00034394,7]
[322449572,1713015053863,-151.0,0.00034394,2]
[322449573,1713015053873,-500.0,0.00034394,7]
[322449574,1713015053882,-151.0,0.00034396,2]
[322449575,1713015053893,-500.0,0.00034668,7]
[322449576,1713015053902,-151.0,0.00034668,2]
[322449577,1713015053911,-1173.70814737,0.00036038,7]
[322449578,1713015053919,-500.0,0.00036038,7]
[322449579,1713015053930,-517.89789748,0.00036038,7]
[322449580,1713015053939,-823.08,0.00036038,7]
[322449581,1713015053948,-725.59,0.00036038,7]
[322449582,1713015053960,-2575.23,0.00036038,7]
[322449583,1713015053969,-1177.63,0.00036038,7]
[322449584,1713015053978,-2208.49,0.00036038,7]
[322449585,1713015053987,-721.69,0.00036038,7]
[322449586,1713015053996,-500.0,0.00036038,7]
[322449587,1713015054005,-500.0,0.00036038,7]
[322449588,1713015054014,-1096.19,0.00036038,7]
[322449589,1713015054024,-818.08,0.00036038,7]
[322449590,1713015054033,-500.0,0.00036038,7]
[322449591,1713015054042,-2592.32,0.00036038,7]
[322449592,1713015054051,-998.3,0.00036038,7]
[322449593,1713015054060,-617.78378399,0.00036038,7]
[322449594,1713015054070,-815.7,0.00036038,7]
[322449595,1713015054079,-1108.59,0.00036038,7]
[322449596,1713015054088,-500.0,0.00036038,7]
[322449597,1713015054097,-1128.53,0.00036038,7]
[322449598,1713015054106,-500.0,0.00036038,7]
[322449599,1713015054116,-2516.5,0.00036038,7]
[322449600,1713015054221,-33798.35,0.00036038,7]
[322449601,1713015054231,-500.0,0.00036038,7]
[322449602,1713015054240,-2217.02,0.00036038,7]
[322449603,1713015054249,-500.0,0.00036038,7]
[322449604,1713015054258,-2535.45,0.00036038,7]
[322449605,1713015054267,-1396.73,0.00036038,7]
[322449606,1713015054278,-939.26,0.00036038,7]
[322449607,1713015054287,-648.57,0.00036038,7]
[322449608,1713015054296,-706.34,0.00036038,7]
[322449609,1713015054305,-1152.24,0.00036038,7]
[322449610,1713015054315,-500.0,0.00036038,7]
[322449611,1713015054324,-500.0,0.00036038,7]
[322449612,1713015054333,-500.0,0.00036038,7]
[322449613,1713015054342,-500.0,0.00036038,7]
[322449614,1713015054351,-648.74,0.00036038,7]
[322449615,1713015054360,-2250.58,0.00036038,7]
[322449616,1713015054370,-1147.33,0.00036038,7]
[322449617,1713015054381,-6760.6,0.00036038,7]
[322449618,1713015054392,-2043.72,0.00036039,7]
[322449619,1713015054401,-738.77,0.00036039,7]
[322449620,1713015054410,-587.87770899,0.00036039,7]
[322449621,1713015054419,-368.11633361,0.00036039,7]
[322449651,1713016238238,-157.42885592,0.00027396,2]
[322449652,1713016238249,-168.66655,0.00027397,2]
[322449653,1713016238264,-176.36933,0.00031131,2]
[322449654,1713016238273,-400.0,0.00031669,2]
[322449655,1713016238283,-24900.0,0.0003167,2]
[322449656,1713016238293,-1129.6054062,0.00031897,2]
[322449657,1713016238302,-500.0,0.00032875,2]
[322449658,1713016238311,-500.0,0.00032875,2]
[322449659,1713016238321,-500.0,0.00032875,2]
[322449660,1713016238331,-500.0,0.00032875,2]
[322449661,1713016238340,-500.0,0.00032875,2]
[322449662,1713016238350,-472.28236725,0.00032875,2]
[322449663,1713016238360,-500.0,0.00032875,2]
[322449664,1713016238369,-500.0,0.00032875,2]
[322449665,1713016238379,-500.0,0.00032875,2]
[322449666,1713016238388,-500.0,0.00032875,2]
[322449667,1713016238397,-1187.66,0.00032876,2]
[322449668,1713016238407,-500.0,0.00032876,7]
[322449669,1713016238416,-500.0,0.00032876,7]
[322449670,1713016238426,-500.0,0.00032876,7]
[322449671,1713016238436,-500.0,0.00032876,7]
[322449672,1713016238445,-500.0,0.00032876,7]
[322449673,1713016238455,-500.0,0.00032876,7]
[322449674,1713016238464,-500.0,0.00032876,7]
[322449675,1713016238474,-500.0,0.00032876,7]
[322449676,1713016238483,-500.0,0.00032876,7]
[322449677,1713016238492,-500.0,0.00032876,7]
[322449678,1713016238503,-500.0,0.00032876,7]
[322449679,1713016238513,-500.0,0.00032876,7]
[322449680,1713016238522,-1125.05,0.00032876,7]
[322449681,1713016238531,-500.0,0.00032876,7]
[322449682,1713016238541,-500.0,0.00032876,7]
[322449683,1713016238550,-500.0,0.00032876,7]
[322449684,1713016238559,-527.98,0.00032876,7]
[322449685,1713016238569,-500.0,0.00032876,7]
[322449686,1713016238578,-500.0,0.00032876,7]
[322449687,1713016238589,-507.16326243,0.00032876,7]
[322449688,1713016238599,-500.0,0.00032876,7]
[322449689,1713016238608,-602.08,0.00032876,7]
[322449690,1713016238618,-507.60690274,0.00032876,7]
[322449691,1713016238627,-500.0,0.00032876,7]
[322449692,1713016238637,-500.0,0.00032876,7]
[322449693,1713016238646,-932.29,0.00032876,7]
[322449694,1713016238656,-500.0,0.00032876,7]
[322449695,1713016238666,-500.0,0.00032876,7]
[322449696,1713016238685,-500.0,0.00032876,7]
[322449697,1713016238694,-1840.94,0.00032876,7]
[322449698,1713016238704,-500.0,0.00032876,7]
[322449699,1713016238714,-5352.14,0.00032876,7]
[322449700,1713016238723,-500.0,0.00032876,7]
[322449701,1713016238733,-651.6,0.00032876,7]
[322449702,1713016238742,-790.32,0.00032876,7]
[322449703,1713016238753,-2160.59,0.00032876,7]
[322449704,1713016238764,-571.34,0.00032876,7]
[322449705,1713016238773,-2135.12,0.00032876,7]
[322449706,1713016238783,-578.42302313,0.00032876,7]
[322449707,1713016238792,-678.04,0.00032876,7]
[322449708,1713016238802,-500.0,0.00032876,7]
[322449709,1713016238811,-500.0,0.00032876,7]
[322449710,1713016238820,-500.0,0.00032876,7]
[322449711,1713016238830,-500.0,0.00032876,7]
[322449712,1713016238839,-679.98,0.00032876,7]
[322449713,1713016238848,-500.0,0.00032876,7]
[322449714,1713016238870,-227.54848399,0.00032876,7]
[322449715,1713016238881,-500.0,0.00032876,7]
[322449716,1713016238891,-300.0,0.00032876,7]
[322449717,1713016238902,-877.63,0.00032876,7]
[322449719,1713016238912,-893.42,0.00032876,7]
[322449721,1713016238922,-1992.23,0.00032876,7]
[322449723,1713016238932,-8137.85,0.00032876,7]
[322449725,1713016238941,-500.0,0.00032876,7]
[322449727,1713016238951,-500.0,0.00032876,7]
[322449729,1713016238961,-500.0,0.00032876,7]
[322449731,1713016238971,-500.0,0.00032876,7]
[322449733,1713016238981,-500.0,0.00032876,7]
[322449735,1713016238990,-568.72,0.00032876,7]
[322449737,1713016239000,-1755.14,0.00032876,7]
[322449739,1713016239012,-500.0,0.00032876,7]
[322449741,1713016239022,-500.0,0.00032876,7]
[322449743,1713016239031,-1105.74,0.00032876,7]
[322449745,1713016239040,-26757.03,0.00032876,7]
[322449747,1713016239049,-500.0,0.00032876,7]
[322449749,1713016239061,-559.19,0.00032876,7]
[322449751,1713016239071,-500.0,0.00032876,7]
[322449753,1713016239080,-501.77509205,0.00032876,7]
[322449755,1713016239090,-819.78,0.00032876,7]
[322449757,1713016239100,-912.19,0.00032876,7]
[322449760,1713016239109,-500.0,0.00032876,7]
[322449761,1713016239119,-510.0202289,0.00032876,7]
[322449763,1713016239128,-2007.23,0.00032876,7]
[322449766,1713016239138,-500.0,0.00032876,7]
[322449768,1713016239149,-513.59,0.00032876,7]
[322449770,1713016239158,-510.00208274,0.00032876,7]
[322449772,1713016239167,-500.0,0.00032876,7]
[322449774,1713016239176,-500.0,0.00032876,7]
[322449776,1713016239186,-500.0,0.00032876,7]
[322449778,1713016239195,-500.0,0.00032876,7]
[322449780,1713016239204,-500.0,0.00032876,7]
[322449782,1713016239213,-859.85,0.00032876,7]
[322449784,1713016239222,-2807.46,0.00032876,7]
[322449786,1713016239232,-500.0,0.00032876,7]
[322449788,1713016239241,-1875.49,0.00032876,7]
[322449790,1713016239250,-503.96874369,0.00032876,7]
[322449792,1713016239261,-1227.14,0.00032876,7]
[322449794,1713016239270,-500.0,0.00032876,7]
[322449796,1713016239279,-1005.67,0.00032876,7]
[322449798,1713016239289,-177.85371083,0.0003305,2]
[322449800,1713016239298,-213.72526065,0.00033149,7]
[322449802,1713016239307,-216.9720673,0.00033149,7]
[322449804,1713016239316,-99209.97209848,0.0003315,5]
[322449806,1713016239325,-1187.66,0.0003315,2]
[322449808,1713016239334,-500.0,0.0003315,7]
[322449810,1713016239344,-500.0,0.0003315,7]
[322449812,1713016239353,-500.0,0.0003315,7]
[322449814,1713016239362,-500.0,0.0003315,7]
[322449816,1713016239371,-500.0,0.0003315,7]
[322449818,1713016239380,-500.0,0.0003315,7]
[322449820,1713016239389,-500.0,0.0003315,7]
[322449822,1713016239399,-500.0,0.0003315,7]
[322449824,1713016239408,-500.0,0.0003315,7]
[322449826,1713016239417,-500.0,0.0003315,7]
[322449828,1713016239427,-328.71112463,0.0003315,7]
[322449830,1713016239436,-1125.05,0.0003315,7]
[322449832,1713016239446,-500.0,0.0003315,7]
[322449834,1713016239456,-500.0,0.0003315,7]
[322449836,1713016239465,-500.0,0.0003315,7]
[322449838,1713016239475,-527.98,0.0003315,7]
[322449840,1713016239484,-630.98448967,0.0003315,7]
[322449842,1713016239493,-275.00288816,0.0003315,7]
[322449844,1713016239504,-602.08,0.0003315,7]
[322449846,1713016239513,-500.0,0.0003315,7]
[322449848,1713016239523,-500.0,0.0003315,7]
[322449850,1713016239533,-932.29,0.0003315,7]
[322449853,1713016239542,-1840.94,0.0003315,7]
[322449855,1713016239551,-5352.14,0.0003315,7]
[322449857,1713016239560,-651.6,0.0003315,7]
[322449860,1713016239570,-790.32,0.0003315,7]
[322449862,1713016239579,-2160.59,0.0003315,7]
[322449864,1713016239588,-571.34,0.0003315,7]
[322449866,1713016239597,-2135.12,0.0003315,7]
[322449868,1713016239606,-678.04,0.0003315,7]
[322449870,1713016239616,-500.0,0.0003315,7]
[322449872,1713016239625,-500.0,0.0003315,7]
[322449874,1713016239634,-500.0,0.0003315,7]
[322449876,1713016239643,-679.98,0.0003315,7]
[322449878,1713016239652,-500.0,0.0003315,7]
[322449880,1713016239661,-300.0,0.0003315,7]
[322449882,1713016239671,-877.63,0.0003315,7]
[322449884,1713016239680,-893.42,0.0003315,7]
[322449886,1713016239690,-1992.23,0.0003315,7]
[322449888,1713016239699,-8137.85,0.0003315,7]
[322449890,1713016239708,-500.0,0.0003315,7]
[322449892,1713016239717,-500.0,0.0003315,7]
[322449894,1713016239726,-500.0,0.0003315,7]
[322449896,1713016239736,-500.0,0.0003315,7]
[322449898,1713016239745,-568.72,0.0003315,7]
[322449900,1713016239756,-1755.14,0.0003315,7]
[322449902,1713016239765,-500.0,0.0003315,7]
[322449904,1713016239775,-1105.74,0.0003315,7]
[322449906,1713016239784,-26757.03,0.0003315,7]
[322449908,1713016239793,-500.0,0.0003315,7]
[322449910,1713016239802,-559.19,0.0003315,7]
[322449911,1713016239811,-500.0,0.0003315,7]
[322449914,1713016239821,-819.78,0.0003315,7]
[322449915,1713016239830,-912.19,0.0003315,7]
[322449918,1713016239840,-500.0,0.0003315,7]
[322449919,1713016239849,-2007.23,0.0003315,7]
[322449922,1713016239859,-577.5287327,0.0003315,7]
[322449924,1713016239869,-513.59,0.0003315,7]
[322449926,1713016239879,-500.0,0.0003315,7]
[322449928,1713016239888,-500.0,0.0003315,7]
[322449930,1713016239897,-500.0,0.0003315,7]
[322449932,1713016239906,-859.85,0.0003315,7]
[322449934,1713016239915,-2807.46,0.0003315,7]
[322449935,1713016239925,-1875.49,0.0003315,7]
[322449938,1713016239935,-1227.14,0.0003315,7]
[322449940,1713016239945,-1187.66,0.00033424,2]
[322449942,1713016239955,-500.0,0.00033424,7]
[322449944,1713016239964,-500.0,0.00033424,7]
[322449946,1713016239973,-500.0,0.00033424,7]
[322449948,1713016239982,-500.0,0.00033424,7]
[322449950,1713016239992,-437.96672686,0.00033424,7]
[322449952,1713016240001,-500.0,0.00033424,7]
[322449954,1713016240011,-500.0,0.00033424,7]
[322449956,1713016240021,-1125.05,0.00033424,7]
[322449958,1713016240030,-500.0,0.00033424,7]
[322449960,1713016240039,-350.0221726,0.00033424,7]
[322449962,1713016240048,-500.0,0.00033424,7]
[322449964,1713016240060,-527.98,0.00033424,7]
[322449966,1713016240072,-602.08,0.00033424,7]
[322449968,1713016240080,-500.0,0.00033424,7]
[322449970,1713016240089,-932.29,0.00033424,7]
[322449972,1713016240099,-1840.94,0.00033424,7]
[322449974,1713016240108,-5352.14,0.00033424,7]
[322449976,1713016240118,-651.6,0.00033424,7]
[322449978,1713016240127,-790.32,0.00033424,7]
[322449980,1713016240136,-2160.59,0.00033424,7]
[322449981,1713016240146,-571.34,0.00033424,7]
[322449983,1713016240157,-2135.12,0.00033424,7]
[322449986,1713016240166,-678.04,0.00033424,7]
[322449988,1713016240175,-500.0,0.00033424,7]
[322449990,1713016240185,-500.0,0.00033424,7]
[322449992,1713016240194,-626.33451394,0.00033424,7]
[322449993,1713016240203,-679.98,0.00033424,7]
[322449996,1713016240213,-332.38896845,0.00033424,7]
[322449997,1713016240222,-877.63,0.00033424,7]
[322449999,1713016240231,-893.42,0.00033424,7]
[322450002,1713016240240,-1992.23,0.00033424,7]
[322450004,1713016240250,-8137.85,0.00033424,7]
[322450005,1713016240260,-500.0,0.00033424,7]
[322450007,1713016240269,-500.0,0.00033424,7]
[322450010,1713016240279,-568.72,0.00033424,7]
[322450011,1713016240288,-1755.14,0.00033424,7]
[322450013,1713016240297,-500.0,0.00033424,7]
[322450015,1713016240306,-1105.74,0.00033424,7]
[322450017,1713016240316,-26757.03,0.00033424,7]
[322450019,1713016240325,-500.0,0.00033424,7]
[322450022,1713016240335,-559.19,0.00033424,7]
[322450024,1713016240344,-500.0,0.00033424,7]
[322450026,1713016240353,-819.78,0.00033424,7]
[322450028,1713016240362,-912.19,0.00033424,7]
[322450030,1713016240371,-506.47940517,0.00033424,7]
[322450032,1713016240381,-2007.23,0.00033424,7]
[322450034,1713016240390,-513.59,0.00033424,7]
[322450036,1713016240399,-500.0,0.00033424,7]
[322450038,1713016240408,-500.0,0.00033424,7]
[322450040,1713016240417,-859.85,0.00033424,7]
[322450042,1713016240426,-2807.46,0.00033424,7]
[322450044,1713016240435,-1875.49,0.00033424,7]
[322450046,1713016240444,-1227.14,0.00033424,7]
[322450048,1713016240454,-3768.49922713,0.00033664,2]
[322450050,1713016240462,-1187.66,0.00033698,2]
[322450052,1713016240472,-500.0,0.00033698,7]
[322450054,1713016240481,-500.0,0.00033698,7]
[322450056,1713016240490,-500.0,0.00033698,7]
[322450058,1713016240500,-201.02648218,0.00033698,7]
[322450060,1713016240510,-500.0,0.00033698,7]
[322450062,1713016240519,-500.0,0.00033698,7]
[322450064,1713016240528,-1125.05,0.00033698,7]
[322450066,1713016240537,-527.98,0.00033698,7]
[322450068,1713016240546,-602.08,0.00033698,7]
[322450070,1713016240556,-500.0,0.00033698,7]
[322450072,1713016240565,-932.29,0.00033698,7]
[322450074,1713016240574,-1840.94,0.00033698,7]
[322450076,1713016240583,-5352.14,0.00033698,7]
[322450078,1713016240592,-651.6,0.00033698,7]
[322450080,1713016240601,-790.32,0.00033698,7]
[322450082,1713016240610,-2160.59,0.00033698,7]
[322450084,1713016240620,-571.34,0.00033698,7]
[322450086,1713016240628,-2135.12,0.00033698,7]
[322450087,1713016240638,-678.04,0.00033698,7]
[322450090,1713016240648,-500.0,0.00033698,7]
[322450092,1713016240657,-500.0,0.00033698,7]
[322450094,1713016240666,-679.98,0.00033698,7]
[322450095,1713016240675,-877.63,0.00033698,7]
[322450097,1713016240685,-893.42,0.00033698,7]
[322450100,1713016240695,-1992.23,0.00033698,7]
[322450101,1713016240705,-8137.85,0.00033698,7]
[322450104,1713016240714,-500.0,0.00033698,7]
[322450106,1713016240724,-500.0,0.00033698,7]
[322450108,1713016240733,-568.72,0.00033698,7]
[322450110,1713016240742,-1755.14,0.00033698,7]
[322450112,1713016240751,-500.0,0.00033698,7]
[322450114,1713016240762,-1105.74,0.00033698,7]
[322450116,1713016240771,-26757.03,0.00033698,7]
[322450117,1713016240781,-500.0,0.00033698,7]
[322450119,1713016240790,-559.19,0.00033698,7]
[322450122,1713016240800,-500.0,0.00033698,7]
[322450124,1713016240809,-819.78,0.00033698,7]
[322450126,1713016240819,-912.19,0.00033698,7]
[322450128,1713016240829,-2007.23,0.00033698,7]
[322450130,1713016240838,-513.59,0.00033698,7]
[322450132,1713016240848,-500.0,0.00033698,7]
[322450134,1713016240858,-859.85,0.00033698,7]
[322450136,1713016240867,-2807.46,0.00033698,7]
[322450138,1713016240876,-1875.49,0.00033698,7]
[322450140,1713016240886,-1227.14,0.00033698,7]
[322450142,1713016240895,-212.207333,0.00033767,2]
[322450144,1713016240905,-1187.66,0.00033972,2]
[322450146,1713016240913,-500.0,0.00033972,7]
[322450148,1713016240922,-573.95846797,0.00033972,7]
[322450150,1713016240933,-500.0,0.00033972,7]
[322450152,1713016240942,-500.0,0.00033972,7]
[322450154,1713016240951,-500.0,0.00033972,7]
[322450155,1713016240960,-1125.05,0.00033972,7]
[322450158,1713016240970,-527.98,0.00033972,7]
[322450160,1713016240979,-602.08,0.00033972,7]
[322450161,1713016240988,-500.0,0.00033972,7]
[322450164,1713016240998,-932.29,0.00033972,7]
[322450166,1713016241009,-1840.94,0.00033972,7]
[322450168,1713016241018,-5352.14,0.00033972,7]
[322450170,1713016241027,-651.6,0.00033972,7]
[322450171,1713016241036,-790.32,0.00033972,7]
[322450173,1713016241046,-2160.59,0.00033972,7]
[322450175,1713016241055,-571.34,0.00033972,7]
[322450178,1713016241069,-2135.12,0.00033972,7]
[322450179,1713016241078,-678.04,0.00033972,7]
[322450181,1713016241088,-587.82449429,0.00033972,7]
[322450187,1713016241223,-500.0,0.00033972,7]
[322450188,1713016241233,-679.98,0.00033972,7]
[322450189,1713016241243,-877.63,0.00033972,7]
[322450190,1713016241254,-893.42,0.00033972,7]
[322450191,1713016241266,-1992.23,0.00033972,7]
[322450192,1713016241276,-8137.85,0.00033972,7]
[322450193,1713016241286,-500.0,0.00033972,7]
[322450194,1713016241295,-500.0,0.00033972,7]
[322450195,1713016241305,-568.72,0.00033972,7]
[322450196,1713016241314,-1755.14,0.00033972,7]
[322450197,1713016241324,-1105.74,0.00033972,7]
[322450198,1713016241333,-26757.03,0.00033972,7]
[322450199,1713016241343,-500.0,0.00033972,7]
[322450200,1713016241352,-559.19,0.00033972,7]
[322450201,1713016241362,-500.0,0.00033972,7]
[322450202,1713016241371,-819.78,0.00033972,7]
[322450203,1713016241380,-912.19,0.00033972,7]
[322450204,1713016241390,-2007.23,0.00033972,7]
[322450205,1713016241399,-513.59,0.00033972,7]
[322450206,1713016241408,-500.0,0.00033972,7]
[322450207,1713016241418,-859.85,0.00033972,7]
[322450208,1713016241427,-2807.46,0.00033972,7]
[322450209,1713016241436,-1875.49,0.00033972,7]
[322450210,1713016241446,-1227.14,0.00033972,7]
[322450211,1713016241456,-1187.66,0.00034246,2]
[322450212,1713016241465,-500.0,0.00034246,7]
[322450213,1713016241475,-500.0,0.00034246,7]
[322450214,1713016241484,-500.0,0.00034246,7]
[322450215,1713016241494,-500.0,0.00034246,7]
[322450216,1713016241504,-1125.05,0.00034246,7]
[322450217,1713016241521,-527.98,0.00034246,7]
[322450218,1713016241531,-602.08,0.00034246,7]
[322450219,1713016241540,-500.0,0.00034246,7]
[322450220,1713016241550,-932.29,0.00034246,7]
[322450221,1713016241559,-1840.94,0.00034246,7]
[322450222,1713016241569,-5352.14,0.00034246,7]
[322450223,1713016241578,-651.6,0.00034246,7]
[322450224,1713016241588,-790.32,0.00034246,7]
[322450225,1713016241598,-2160.59,0.00034246,7]
[322450226,1713016241607,-571.34,0.00034246,7]
[322450227,1713016241616,-2135.12,0.00034246,7]
[322450228,1713016241625,-678.04,0.00034246,7]
[322450229,1713016241635,-500.0,0.00034246,7]
[322450230,1713016241644,-679.98,0.00034246,7]
[322450231,1713016241656,-877.63,0.00034246,7]
[322450232,1713016241666,-893.42,0.00034246,7]
[322450233,1713016241675,-1992.23,0.00034246,7]
[322450234,1713016241684,-8137.85,0.00034246,7]
[322450235,1713016241694,-500.0,0.00034246,7]
[322450236,1713016241703,-500.0,0.00034246,7]
[322450237,1713016241713,-568.72,0.00034246,7]
[322450238,1713016241722,-1755.14,0.00034246,7]
[322450239,1713016241731,-1105.74,0.00034246,7]
[322450240,1713016241741,-26757.03,0.00034246,7]
[322450241,1713016241750,-500.0,0.00034246,7]
[322450242,1713016241763,-559.19,0.00034246,7]
[322450243,1713016241773,-500.0,0.00034246,7]
[322450244,1713016241782,-819.78,0.00034246,7]
[322450245,1713016241792,-912.19,0.00034246,7]
[322450246,1713016241801,-2007.23,0.00034246,7]
[322450247,1713016241811,-513.59,0.00034246,7]
[322450248,1713016241821,-500.0,0.00034246,7]
[322450249,1713016241831,-859.85,0.00034246,7]
[322450250,1713016241840,-2807.46,0.00034246,7]
[322450251,1713016241850,-1875.49,0.00034246,7]
[322450252,1713016241859,-1227.14,0.00034246,7]
[322450253,1713016241868,-3217.60594446,0.00034293,2]
[322450254,1713016241878,-720.40975378,0.00034391,4]